[Event "Titled Tuesday Blitz October 26 2021"]
[White "Akbarinia, Sayed Arash"]
[Black "Izoria, Zviad"]
[WhiteFideId "12501468"]
[BlackFideId "13601733"]
[WhiteElo "2386"]
[BlackElo "2626"]
[Result "1/2-1/2"]
[Round "01"]
[TimeControl "180+1"]
[Date "2021.10.26"]
[WhiteClock "0:00:12"]
[BlackClock "0:00:38"]

1. Nf3 {[%clk 0:02:58]}  d5 {[%clk 0:02:58]} 2. c4 {[%clk 0:02:58]}  d4 {[%clk 0:02:58]} 3. g3 {[%clk 0:02:58]}  Nc6 {[%clk 0:02:57]} 4. Bg2 {[%clk 0:02:58]}  e5 {[%clk 0:02:57]} 5. d3 {[%clk 0:02:58]}  Bb4+ {[%clk 0:02:55]} 6. Bd2 {[%clk 0:02:58]}  a5 {[%clk 0:02:56]} 7. O-O {[%clk 0:02:58]}  Nf6 {[%clk 0:02:56]} 8. b3 {[%clk 0:02:40]}  O-O {[%clk 0:02:55]} 9. a3 {[%clk 0:02:40]}  Be7 {[%clk 0:02:54]} 10. Qc2 {[%clk 0:02:28]}  h6 {[%clk 0:02:53]} 11. Qb2 {[%clk 0:02:28]}  Bf5 {[%clk 0:02:53]} 12. b4 {[%clk 0:02:27]}  axb4 {[%clk 0:02:30]} 13. axb4 {[%clk 0:02:27]}  Rxa1 {[%clk 0:02:30]} 14. Qxa1 {[%clk 0:02:28]}  e4 {[%clk 0:02:15]} 15. dxe4 {[%clk 0:02:16]}  Bxe4 {[%clk 0:02:16]} 16. b5 {[%clk 0:02:16]}  Bxf3 {[%clk 0:02:15]} 17. Bxf3 {[%clk 0:02:13]}  Ne5 {[%clk 0:02:16]} 18. Bxb7 {[%clk 0:02:10]}  Nxc4 {[%clk 0:02:16]} 19. Bf4 {[%clk 0:02:03]}  Bc5 {[%clk 0:02:02]} 20. Nd2 {[%clk 0:01:55]}  Nxd2 {[%clk 0:02:02]} 21. Bxd2 {[%clk 0:01:56]}  Re8 {[%clk 0:02:01]} 22. Qc1 {[%clk 0:01:20]}  Bb6 {[%clk 0:02:00]} 23. Qc4 {[%clk 0:01:18]}  Ne4 {[%clk 0:01:54]} 24. Bf4 {[%clk 0:01:11]}  g5 {[%clk 0:01:49]} 25. Bxe4 {[%clk 0:01:10]}  Rxe4 {[%clk 0:01:48]} 26. Bc1 {[%clk 0:00:56]}  Qe7 {[%clk 0:01:27]} 27. Re1 {[%clk 0:00:54]}  Ba5 {[%clk 0:01:20]} 28. Rf1 {[%clk 0:00:45]}  Rxe2 {[%clk 0:01:16]} 29. Qxd4 {[%clk 0:00:43]}  Bb6 {[%clk 0:01:16]} 30. Qd3 {[%clk 0:00:42]}  Rxf2 {[%clk 0:01:11]} 31. Rxf2 {[%clk 0:00:41]}  Qe1+ {[%clk 0:01:11]} 32. Qf1 {[%clk 0:00:39]}  Bxf2+ {[%clk 0:01:12]} 33. Kg2 {[%clk 0:00:40]}  Qxf1+ {[%clk 0:01:12]} 34. Kxf1 {[%clk 0:00:40]}  Bb6 {[%clk 0:01:12]} 35. h4 {[%clk 0:00:39]}  gxh4 {[%clk 0:01:12]} 36. gxh4 {[%clk 0:00:40]}  h5 {[%clk 0:01:13]} 37. Kg2 {[%clk 0:00:39]}  f6 {[%clk 0:01:05]} 38. Kf3 {[%clk 0:00:38]}  Kf7 {[%clk 0:01:06]} 39. Ke4 {[%clk 0:00:36]}  Ke6 {[%clk 0:01:07]} 40. Bf4 {[%clk 0:00:36]}  Ba5 {[%clk 0:01:06]} 41. Bg3 {[%clk 0:00:33]}  Bb6 {[%clk 0:01:03]} 42. Bf4 {[%clk 0:00:32]}  f5+ {[%clk 0:01:02]} 43. Kf3 {[%clk 0:00:30]}  Kd5 {[%clk 0:01:01]} 44. Bg3 {[%clk 0:00:30]}  Kc4 {[%clk 0:00:57]} 45. Kf4 {[%clk 0:00:30]}  Kxb5 {[%clk 0:00:57]} 46. Kxf5 {[%clk 0:00:30]}  c5 {[%clk 0:00:57]} 47. Kg6 {[%clk 0:00:19]}  c4 {[%clk 0:00:58]} 48. Be5 {[%clk 0:00:19]}  Kc6 {[%clk 0:00:44]} 49. Kxh5 {[%clk 0:00:19]}  Kd5 {[%clk 0:00:45]} 50. Bc3 {[%clk 0:00:19]}  Ke4 {[%clk 0:00:38]} 51. Kg6 {[%clk 0:00:16]}  Kd3 {[%clk 0:00:39]} 52. Bb4 {[%clk 0:00:14]}  Be3 {[%clk 0:00:38]} 53. h5 {[%clk 0:00:12]}  c3 {[%clk 0:00:38]} 54. Bxc3 {[%clk 0:00:12]}  Kxc3 {[%clk 0:00:38]} 55. h6 {[%clk 0:00:12]}  Bxh6 {[%clk 0:00:38]} 1/2-1/2


[Site "https://www.chess.com"]

[Event "Titled Tuesday Blitz October 26 2021"]
[White "Al-Tarboush, Ward"]
[Black "Mamedyarov, Shakhriyar"]
[WhiteFideId "7601450"]
[BlackFideId "13401319"]
[WhiteElo "2296"]
[BlackElo "2754"]
[Result "0-1"]
[Round "01"]
[TimeControl "180+1"]
[Date "2021.10.26"]
[WhiteClock "0:00:07"]
[BlackClock "0:00:17"]

1. d4 {[%clk 0:02:57]}  d5 {[%clk 0:02:51]} 2. Nf3 {[%clk 0:02:55]}  e6 {[%clk 0:02:46]} 3. Nc3 {[%clk 0:02:54]}  Nf6 {[%clk 0:02:45]} 4. Bg5 {[%clk 0:02:53]}  Nbd7 {[%clk 0:02:39]} 5. e4 {[%clk 0:02:47]}  h6 {[%clk 0:02:35]} 6. Bxf6 {[%clk 0:02:45]}  Nxf6 {[%clk 0:02:36]} 7. Bd3 {[%clk 0:02:44]}  Bb4 {[%clk 0:02:32]} 8. e5 {[%clk 0:02:35]}  Ne4 {[%clk 0:02:31]} 9. O-O {[%clk 0:02:35]}  Nxc3 {[%clk 0:02:30]} 10. bxc3 {[%clk 0:02:34]}  Bxc3 {[%clk 0:02:31]} 11. Rb1 {[%clk 0:02:33]}  Ba5 {[%clk 0:02:21]} 12. c4 {[%clk 0:02:12]}  dxc4 {[%clk 0:02:11]} 13. Bxc4 {[%clk 0:02:12]}  O-O {[%clk 0:02:10]} 14. Qe2 {[%clk 0:02:05]}  b6 {[%clk 0:01:56]} 15. Qe4 {[%clk 0:01:56]}  Rb8 {[%clk 0:01:57]} 16. Bd3 {[%clk 0:01:52]}  g6 {[%clk 0:01:57]} 17. Qg4 {[%clk 0:01:42]}  Bb7 {[%clk 0:01:31]} 18. Bxg6 {[%clk 0:01:42]}  Bxf3 {[%clk 0:01:31]} 19. gxf3 {[%clk 0:01:20]}  Kh8 {[%clk 0:01:30]} 20. Qh5 {[%clk 0:01:13]}  Qg5+ {[%clk 0:01:10]} 21. Qxg5 {[%clk 0:01:13]}  hxg5 {[%clk 0:01:11]} 22. Be4 {[%clk 0:01:12]}  Rbd8 {[%clk 0:01:11]} 23. Rfd1 {[%clk 0:01:12]}  Bc3 {[%clk 0:01:10]} 24. d5 {[%clk 0:01:09]}  Bxe5 {[%clk 0:01:06]} 25. dxe6 {[%clk 0:01:05]}  fxe6 {[%clk 0:01:07]} 26. Kg2 {[%clk 0:00:56]}  Kg7 {[%clk 0:00:54]} 27. Rh1 {[%clk 0:00:53]}  Rh8 {[%clk 0:00:52]} 28. Rbe1 {[%clk 0:00:53]}  Kf6 {[%clk 0:00:52]} 29. Re2 {[%clk 0:00:49]}  Bf4 {[%clk 0:00:52]} 30. Bc6 {[%clk 0:00:47]}  Rd6 {[%clk 0:00:51]} 31. Rc2 {[%clk 0:00:43]}  Rd4 {[%clk 0:00:50]} 32. h3 {[%clk 0:00:40]}  Rd6 {[%clk 0:00:42]} 33. Re1 {[%clk 0:00:38]}  Rhd8 {[%clk 0:00:41]} 34. Ba4 {[%clk 0:00:24]}  Rd2 {[%clk 0:00:36]} 35. Rxd2 {[%clk 0:00:24]}  Rxd2 {[%clk 0:00:35]} 36. Bb3 {[%clk 0:00:24]}  Rd6 {[%clk 0:00:32]} 37. Re2 {[%clk 0:00:22]}  c5 {[%clk 0:00:31]} 38. Bc4 {[%clk 0:00:22]}  e5 {[%clk 0:00:29]} 39. Rc2 {[%clk 0:00:21]}  Rd4 {[%clk 0:00:28]} 40. a4 {[%clk 0:00:21]}  Ke7 {[%clk 0:00:28]} 41. Bb5 {[%clk 0:00:21]}  Kd6 {[%clk 0:00:27]} 42. Bc4 {[%clk 0:00:21]}  Rxc4 {[%clk 0:00:18]} 43. Rxc4 {[%clk 0:00:20]}  Kd5 {[%clk 0:00:19]} 44. Rc2 {[%clk 0:00:19]}  c4 {[%clk 0:00:20]} 45. Kf1 {[%clk 0:00:19]}  Kc5 {[%clk 0:00:20]} 46. Ke2 {[%clk 0:00:16]}  a6 {[%clk 0:00:20]} 47. Ra2 {[%clk 0:00:11]}  b5 {[%clk 0:00:18]} 48. axb5 {[%clk 0:00:12]}  axb5 {[%clk 0:00:19]} 49. Ra8 {[%clk 0:00:11]}  b4 {[%clk 0:00:19]} 50. Rc8+ {[%clk 0:00:11]}  Kd4 {[%clk 0:00:19]} 51. Kd1 {[%clk 0:00:08]}  b3 {[%clk 0:00:19]} 52. Rb8 {[%clk 0:00:07]}  Kc3 {[%clk 0:00:18]} 53. Rb5 {[%clk 0:00:07]}  Kb2 {[%clk 0:00:17]} 54. Ke2 {[%clk 0:00:07]}  c3 {[%clk 0:00:17]} 0-1


[Site "https://www.chess.com"]

[Event "Titled Tuesday Blitz October 26 2021"]
[White "Bortnyk, Olexandr"]
[Black "Skuhala, Jernej"]
[WhiteFideId "14120828"]
[BlackFideId "14605651"]
[WhiteElo "2723"]
[BlackElo "2415"]
[Result "1-0"]
[Round "01"]
[TimeControl "180+1"]
[Date "2021.10.26"]
[WhiteClock "0:01:58"]
[BlackClock "0:01:47"]

1. e4 {[%clk 0:03:00]}  c6 {[%clk 0:02:58]} 2. c4 {[%clk 0:02:58]}  d5 {[%clk 0:02:59]} 3. cxd5 {[%clk 0:02:57]}  cxd5 {[%clk 0:03:00]} 4. exd5 {[%clk 0:02:57]}  Qxd5 {[%clk 0:02:57]} 5. Nc3 {[%clk 0:02:56]}  Qd8 {[%clk 0:02:57]} 6. Bc4 {[%clk 0:02:57]}  e6 {[%clk 0:02:58]} 7. Nf3 {[%clk 0:02:56]}  Nf6 {[%clk 0:02:58]} 8. O-O {[%clk 0:02:56]}  Nbd7 {[%clk 0:02:58]} 9. d4 {[%clk 0:02:56]}  Nb6 {[%clk 0:02:58]} 10. Bd3 {[%clk 0:02:53]}  Be7 {[%clk 0:02:58]} 11. Qe2 {[%clk 0:02:51]}  O-O {[%clk 0:02:58]} 12. Bg5 {[%clk 0:02:47]}  Nbd5 {[%clk 0:02:58]} 13. Rfe1 {[%clk 0:02:43]}  h6 {[%clk 0:02:54]} 14. Bd2 {[%clk 0:02:42]}  Bd6 {[%clk 0:02:47]} 15. Ne5 {[%clk 0:02:37]}  Bd7 {[%clk 0:02:39]} 16. Qf3 {[%clk 0:02:33]}  Rc8 {[%clk 0:02:34]} 17. Ne4 {[%clk 0:02:07]}  Qe7 {[%clk 0:02:21]} 18. Nxd6 {[%clk 0:01:59]}  Qxd6 {[%clk 0:02:22]} 19. Bxh6 {[%clk 0:02:00]}  Rfd8 {[%clk 0:01:54]} 20. Bxg7 {[%clk 0:01:57]}  Kxg7 {[%clk 0:01:47]} 21. Qg3+ {[%clk 0:01:57]}  Kf8 {[%clk 0:01:47]} 22. Ng6+ {[%clk 0:01:58]} 1-0


[Site "https://www.chess.com"]

[Event "Titled Tuesday Blitz October 26 2021"]
[White "Devaev, Alexander"]
[Black "Zierk, Steven"]
[WhiteFideId "4169395"]
[BlackFideId "2034255"]
[WhiteElo "2185"]
[BlackElo "2494"]
[Result "0-1"]
[Round "01"]
[TimeControl "180+1"]
[Date "2021.10.26"]
[WhiteClock "0:00:05"]
[BlackClock "0:00:18"]

1. d4 {[%clk 0:03:00]}  d5 {[%clk 0:02:58]} 2. c4 {[%clk 0:03:00]}  dxc4 {[%clk 0:02:58]} 3. Nf3 {[%clk 0:03:00]}  Nf6 {[%clk 0:02:58]} 4. Nc3 {[%clk 0:02:54]}  a6 {[%clk 0:02:58]} 5. a4 {[%clk 0:02:53]}  Nc6 {[%clk 0:02:57]} 6. e4 {[%clk 0:02:47]}  Bg4 {[%clk 0:02:48]} 7. d5 {[%clk 0:02:43]}  Ne5 {[%clk 0:02:45]} 8. Be2 {[%clk 0:02:43]}  Bxf3 {[%clk 0:02:39]} 9. gxf3 {[%clk 0:02:43]}  e6 {[%clk 0:02:28]} 10. Qd4 {[%clk 0:01:35]}  Nc6 {[%clk 0:01:47]} 11. Qxc4 {[%clk 0:01:31]}  exd5 {[%clk 0:01:46]} 12. Nxd5 {[%clk 0:01:12]}  Nxd5 {[%clk 0:01:42]} 13. exd5 {[%clk 0:01:13]}  Nb4 {[%clk 0:01:36]} 14. Qe4+ {[%clk 0:00:53]}  Be7 {[%clk 0:01:34]} 15. Bc4 {[%clk 0:00:47]}  O-O {[%clk 0:01:24]} 16. Kf1 {[%clk 0:00:34]}  Re8 {[%clk 0:01:18]} 17. Bd2 {[%clk 0:00:26]}  Bg5 {[%clk 0:01:11]} 18. Bxg5 {[%clk 0:00:20]}  Rxe4 {[%clk 0:01:08]} 19. Bxd8 {[%clk 0:00:19]}  Rxc4 {[%clk 0:01:08]} 20. Be7 {[%clk 0:00:17]}  Nxd5 {[%clk 0:01:07]} 21. Ba3 {[%clk 0:00:18]}  Rxa4 {[%clk 0:01:02]} 22. h4 {[%clk 0:00:16]}  h5 {[%clk 0:00:59]} 23. Rd1 {[%clk 0:00:16]}  Nf4 {[%clk 0:00:54]} 24. Rg1 {[%clk 0:00:15]}  Ne6 {[%clk 0:00:42]} 25. Rh1 {[%clk 0:00:10]}  Rd8 {[%clk 0:00:40]} 26. Rxd8+ {[%clk 0:00:08]}  Nxd8 {[%clk 0:00:41]} 27. Kg2 {[%clk 0:00:08]}  Ne6 {[%clk 0:00:41]} 28. Kg3 {[%clk 0:00:08]}  Nd4 {[%clk 0:00:41]} 29. Rd1 {[%clk 0:00:03]}  Nf5+ {[%clk 0:00:40]} 30. Kh2 {[%clk 0:00:04]}  Rxh4+ {[%clk 0:00:39]} 31. Kg2 {[%clk 0:00:04]}  Rd4 {[%clk 0:00:39]} 32. Re1 {[%clk 0:00:04]}  Rd8 {[%clk 0:00:33]} 33. Re5 {[%clk 0:00:04]}  g6 {[%clk 0:00:34]} 34. Bb4 {[%clk 0:00:04]}  b6 {[%clk 0:00:20]} 35. Bc3 {[%clk 0:00:04]}  a5 {[%clk 0:00:20]} 36. f4 {[%clk 0:00:04]}  Kf8 {[%clk 0:00:18]} 37. Re2 {[%clk 0:00:04]}  Rd5 {[%clk 0:00:17]} 38. Kf3 {[%clk 0:00:03]}  Nd4+ {[%clk 0:00:17]} 39. Bxd4 {[%clk 0:00:03]}  Rxd4 {[%clk 0:00:18]} 40. Re5 {[%clk 0:00:03]}  Rb4 {[%clk 0:00:18]} 41. f5 {[%clk 0:00:04]}  Rxb2 {[%clk 0:00:17]} 42. fxg6 {[%clk 0:00:04]}  fxg6 {[%clk 0:00:18]} 43. Re4 {[%clk 0:00:04]}  Rb5 {[%clk 0:00:18]} 44. Re6 {[%clk 0:00:04]}  Kf7 {[%clk 0:00:18]} 45. Rc6 {[%clk 0:00:05]}  Rc5 {[%clk 0:00:18]} 0-1


[Site "https://www.chess.com"]

[Event "Titled Tuesday Blitz October 26 2021"]
[White "Gupta, Abhijeet"]
[Black "Pajeken, Jakob Leon"]
[WhiteFideId "5010608"]
[BlackFideId "12942839"]
[WhiteElo "2549"]
[BlackElo "2351"]
[Result "1-0"]
[Round "01"]
[TimeControl "180+1"]
[Date "2021.10.26"]
[WhiteClock "0:01:37"]
[BlackClock "0:01:02"]

1. d4 {[%clk 0:02:58]}  d5 {[%clk 0:02:55]} 2. c4 {[%clk 0:02:58]}  dxc4 {[%clk 0:02:54]} 3. Nf3 {[%clk 0:02:57]}  Nf6 {[%clk 0:02:52]} 4. e3 {[%clk 0:02:56]}  e6 {[%clk 0:02:51]} 5. Bxc4 {[%clk 0:02:55]}  c5 {[%clk 0:02:51]} 6. O-O {[%clk 0:02:55]}  Nc6 {[%clk 0:02:49]} 7. Nc3 {[%clk 0:02:51]}  a6 {[%clk 0:02:49]} 8. dxc5 {[%clk 0:02:51]}  Qxd1 {[%clk 0:02:47]} 9. Rxd1 {[%clk 0:02:52]}  Bxc5 {[%clk 0:02:48]} 10. b3 {[%clk 0:02:50]}  b5 {[%clk 0:02:46]} 11. Be2 {[%clk 0:02:49]}  Bb7 {[%clk 0:02:46]} 12. Bb2 {[%clk 0:02:49]}  O-O {[%clk 0:02:46]} 13. Rac1 {[%clk 0:02:49]}  Be7 {[%clk 0:02:46]} 14. Nd2 {[%clk 0:02:47]}  Rac8 {[%clk 0:02:31]} 15. Bf3 {[%clk 0:02:43]}  Nd8 {[%clk 0:02:29]} 16. Nce4 {[%clk 0:02:38]}  Nxe4 {[%clk 0:02:26]} 17. Nxe4 {[%clk 0:02:36]}  Rxc1 {[%clk 0:02:17]} 18. Rxc1 {[%clk 0:02:36]}  Bd5 {[%clk 0:02:05]} 19. Rc7 {[%clk 0:02:28]}  Bb4 {[%clk 0:02:01]} 20. h4 {[%clk 0:02:11]}  h6 {[%clk 0:01:47]} 21. Ra7 {[%clk 0:01:58]}  a5 {[%clk 0:01:31]} 22. a3 {[%clk 0:01:48]}  Nc6 {[%clk 0:01:29]} 23. Rc7 {[%clk 0:01:42]}  Be7 {[%clk 0:01:12]} 24. Nc3 {[%clk 0:01:36]}  Bxf3 {[%clk 0:01:06]} 25. gxf3 {[%clk 0:01:37]}  b4 {[%clk 0:01:02]} 26. axb4 {[%clk 0:01:37]} 1-0


[Site "https://www.chess.com"]

[Event "Titled Tuesday Blitz October 26 2021"]
[White "Guseva, Marina"]
[Black "Andreikin, Dmitry"]
[WhiteFideId "4149351"]
[BlackFideId "4158814"]
[WhiteElo "2279"]
[BlackElo "2736"]
[Result "0-1"]
[Round "01"]
[TimeControl "180+1"]
[Date "2021.10.26"]
[WhiteClock "0:00:08"]
[BlackClock "0:00:47"]

1. d4 {[%clk 0:03:00]}  g6 {[%clk 0:02:59]} 2. c4 {[%clk 0:03:00]}  Bg7 {[%clk 0:02:59]} 3. Nf3 {[%clk 0:02:59]}  Nf6 {[%clk 0:02:57]} 4. g3 {[%clk 0:02:58]}  b6 {[%clk 0:02:54]} 5. Bg2 {[%clk 0:02:57]}  Bb7 {[%clk 0:02:54]} 6. O-O {[%clk 0:02:57]}  e6 {[%clk 0:02:53]} 7. Nc3 {[%clk 0:02:56]}  Ne4 {[%clk 0:02:52]} 8. Qc2 {[%clk 0:02:49]}  Nxc3 {[%clk 0:02:51]} 9. bxc3 {[%clk 0:02:45]}  Nc6 {[%clk 0:02:49]} 10. Bg5 {[%clk 0:02:44]}  Qc8 {[%clk 0:02:46]} 11. Nd2 {[%clk 0:02:38]}  O-O {[%clk 0:02:43]} 12. e4 {[%clk 0:02:35]}  Na5 {[%clk 0:02:40]} 13. Rfe1 {[%clk 0:02:31]}  Ba6 {[%clk 0:02:38]} 14. Bf1 {[%clk 0:02:29]}  f5 {[%clk 0:02:33]} 15. e5 {[%clk 0:02:17]}  Bb7 {[%clk 0:02:25]} 16. c5 {[%clk 0:02:05]}  bxc5 {[%clk 0:02:22]} 17. Be7 {[%clk 0:02:01]}  Rf7 {[%clk 0:02:11]} 18. Bxc5 {[%clk 0:02:00]}  d6 {[%clk 0:02:12]} 19. Ba3 {[%clk 0:01:39]}  dxe5 {[%clk 0:02:11]} 20. dxe5 {[%clk 0:01:38]}  Qd7 {[%clk 0:02:10]} 21. Bg2 {[%clk 0:01:29]}  Bxg2 {[%clk 0:02:09]} 22. Kxg2 {[%clk 0:01:28]}  Rd8 {[%clk 0:02:09]} 23. Nf3 {[%clk 0:01:27]}  Qc6 {[%clk 0:02:05]} 24. Rad1 {[%clk 0:01:19]}  Rb8 {[%clk 0:01:58]} 25. c4 {[%clk 0:00:29]}  g5 {[%clk 0:01:51]} 26. Qc3 {[%clk 0:00:19]}  g4 {[%clk 0:01:30]} 27. Kg1 {[%clk 0:00:19]}  Qxf3 {[%clk 0:01:19]} 28. Qxa5 {[%clk 0:00:18]}  f4 {[%clk 0:01:20]} 29. Rb1 {[%clk 0:00:16]}  Rxb1 {[%clk 0:01:15]} 30. Rxb1 {[%clk 0:00:15]}  fxg3 {[%clk 0:01:15]} 31. Rb8+ {[%clk 0:00:13]}  Rf8 {[%clk 0:01:13]} 32. Rxf8+ {[%clk 0:00:12]}  Bxf8 {[%clk 0:01:13]} 33. Bc5 {[%clk 0:00:09]}  Bxc5 {[%clk 0:00:45]} 34. Qxc5 {[%clk 0:00:09]}  Qxf2+ {[%clk 0:00:45]} 35. Qxf2 {[%clk 0:00:08]}  gxf2+ {[%clk 0:00:46]} 36. Kxf2 {[%clk 0:00:08]}  Kf7 {[%clk 0:00:47]} 37. Kg3 {[%clk 0:00:09]}  h5 {[%clk 0:00:47]} 38. Kh4 {[%clk 0:00:08]}  Kg6 {[%clk 0:00:48]} 39. c5 {[%clk 0:00:08]}  c6 {[%clk 0:00:47]} 40. a3 {[%clk 0:00:08]}  a6 {[%clk 0:00:47]} 41. a4 {[%clk 0:00:08]}  a5 {[%clk 0:00:47]} 0-1


[Site "https://www.chess.com"]

[Event "Titled Tuesday Blitz October 26 2021"]
[White "Jones, Gawain C B"]
[Black "Reprintsev, Alexander"]
[WhiteFideId "409561"]
[BlackFideId "14100541"]
[WhiteElo "2657"]
[BlackElo "2126"]
[Result "1-0"]
[Round "01"]
[TimeControl "180+1"]
[Date "2021.10.26"]
[WhiteClock "0:01:12"]
[BlackClock "0:01:55"]

1. Nf3 {[%clk 0:03:00]}  d5 {[%clk 0:02:57]} 2. b3 {[%clk 0:02:59]}  Bg4 {[%clk 0:02:56]} 3. Bb2 {[%clk 0:02:58]}  Nd7 {[%clk 0:02:56]} 4. c4 {[%clk 0:02:55]}  dxc4 {[%clk 0:02:55]} 5. bxc4 {[%clk 0:02:55]}  Bxf3 {[%clk 0:02:55]} 6. gxf3 {[%clk 0:02:54]}  Ngf6 {[%clk 0:02:54]} 7. d4 {[%clk 0:02:53]}  g6 {[%clk 0:02:54]} 8. Nc3 {[%clk 0:02:48]}  Bg7 {[%clk 0:02:54]} 9. e3 {[%clk 0:02:48]}  e5 {[%clk 0:02:53]} 10. d5 {[%clk 0:02:42]}  O-O {[%clk 0:02:52]} 11. Ba3 {[%clk 0:02:42]}  Re8 {[%clk 0:02:51]} 12. Rb1 {[%clk 0:02:40]}  b6 {[%clk 0:02:50]} 13. Bh3 {[%clk 0:02:39]}  Bf8 {[%clk 0:02:48]} 14. Bxf8 {[%clk 0:02:35]}  Nxf8 {[%clk 0:02:48]} 15. O-O {[%clk 0:02:33]}  Nh5 {[%clk 0:02:46]} 16. Kh1 {[%clk 0:02:32]}  Qh4 {[%clk 0:02:45]} 17. Bg4 {[%clk 0:02:31]}  f5 {[%clk 0:02:44]} 18. Bxh5 {[%clk 0:02:31]}  Qxh5 {[%clk 0:02:45]} 19. f4 {[%clk 0:02:30]}  Qxd1 {[%clk 0:02:43]} 20. Rfxd1 {[%clk 0:02:29]}  exf4 {[%clk 0:02:44]} 21. exf4 {[%clk 0:02:30]}  Nd7 {[%clk 0:02:25]} 22. Re1 {[%clk 0:02:30]}  Kf7 {[%clk 0:02:24]} 23. Nb5 {[%clk 0:02:29]}  Rec8 {[%clk 0:02:19]} 24. Re3 {[%clk 0:02:22]}  a6 {[%clk 0:02:19]} 25. Nd4 {[%clk 0:02:21]}  Nc5 {[%clk 0:02:17]} 26. Nc6 {[%clk 0:02:16]}  Re8 {[%clk 0:02:16]} 27. Ne5+ {[%clk 0:02:16]}  Kg7 {[%clk 0:02:15]} 28. Kg2 {[%clk 0:02:12]}  Re7 {[%clk 0:02:14]} 29. Nc6 {[%clk 0:02:08]}  Re4 {[%clk 0:02:10]} 30. Rxe4 {[%clk 0:02:06]}  Nxe4 {[%clk 0:02:10]} 31. f3 {[%clk 0:01:58]}  Nd6 {[%clk 0:02:07]} 32. Ne5 {[%clk 0:01:58]}  Re8 {[%clk 0:02:04]} 33. h4 {[%clk 0:01:57]}  Nf7 {[%clk 0:02:02]} 34. Re1 {[%clk 0:01:55]}  h6 {[%clk 0:01:59]} 35. Kf2 {[%clk 0:01:46]}  g5 {[%clk 0:01:59]} 36. Nxf7 {[%clk 0:01:20]}  Rxe1 {[%clk 0:01:58]} 37. Kxe1 {[%clk 0:01:21]}  Kxf7 {[%clk 0:01:59]} 38. fxg5 {[%clk 0:01:16]}  hxg5 {[%clk 0:01:59]} 39. hxg5 {[%clk 0:01:16]}  f4 {[%clk 0:01:59]} 40. Ke2 {[%clk 0:01:14]}  Kg6 {[%clk 0:02:00]} 41. Kd3 {[%clk 0:01:14]}  Kxg5 {[%clk 0:02:01]} 42. Ke4 {[%clk 0:01:14]}  b5 {[%clk 0:01:55]} 43. cxb5 {[%clk 0:01:11]}  axb5 {[%clk 0:01:55]} 44. a3 {[%clk 0:01:12]} 1-0


[Site "https://www.chess.com"]

[Event "Titled Tuesday Blitz October 26 2021"]
[White "Kamsky, Gata"]
[Black "Koc, Przemyslaw"]
[WhiteFideId "2000024"]
[BlackFideId "1109081"]
[WhiteElo "2603"]
[BlackElo "2141"]
[Result "1/2-1/2"]
[Round "01"]
[TimeControl "180+1"]
[Date "2021.10.26"]
[WhiteClock "0:00:24"]
[BlackClock "0:00:14"]

1. g3 {[%clk 0:03:00]}  f5 {[%clk 0:02:58]} 2. Bg2 {[%clk 0:03:00]}  Nf6 {[%clk 0:02:59]} 3. b3 {[%clk 0:02:58]}  g6 {[%clk 0:02:59]} 4. Bb2 {[%clk 0:02:58]}  Bg7 {[%clk 0:03:00]} 5. d3 {[%clk 0:02:58]}  d6 {[%clk 0:02:59]} 6. e3 {[%clk 0:02:58]}  e5 {[%clk 0:02:59]} 7. Ne2 {[%clk 0:02:59]}  O-O {[%clk 0:02:58]} 8. c4 {[%clk 0:02:57]}  c6 {[%clk 0:02:57]} 9. O-O {[%clk 0:02:54]}  Be6 {[%clk 0:02:55]} 10. h3 {[%clk 0:02:53]}  Nbd7 {[%clk 0:02:51]} 11. Nbc3 {[%clk 0:02:46]}  a6 {[%clk 0:02:45]} 12. Qd2 {[%clk 0:02:45]}  d5 {[%clk 0:02:45]} 13. Rad1 {[%clk 0:02:43]}  Qe7 {[%clk 0:02:36]} 14. Qc1 {[%clk 0:02:36]}  Rfe8 {[%clk 0:02:32]} 15. Qa1 {[%clk 0:02:34]}  Bf7 {[%clk 0:02:24]} 16. Rfe1 {[%clk 0:02:29]}  e4 {[%clk 0:02:20]} 17. cxd5 {[%clk 0:02:25]}  cxd5 {[%clk 0:02:20]} 18. Nf4 {[%clk 0:02:19]}  g5 {[%clk 0:02:17]} 19. Nfe2 {[%clk 0:02:18]}  Ne5 {[%clk 0:02:15]} 20. dxe4 {[%clk 0:02:17]}  dxe4 {[%clk 0:02:14]} 21. Nd4 {[%clk 0:02:17]}  Bg6 {[%clk 0:02:10]} 22. Rf1 {[%clk 0:01:52]}  g4 {[%clk 0:02:06]} 23. h4 {[%clk 0:01:50]}  Nf3+ {[%clk 0:02:06]} 24. Kh1 {[%clk 0:01:43]}  Nh5 {[%clk 0:02:02]} 25. Nce2 {[%clk 0:01:42]}  Nxh4 {[%clk 0:01:49]} 26. gxh4 {[%clk 0:01:36]}  Qxh4+ {[%clk 0:01:50]} 27. Kg1 {[%clk 0:01:36]}  Be5 {[%clk 0:01:49]} 28. Rfe1 {[%clk 0:01:33]}  g3 {[%clk 0:01:26]} 29. f4 {[%clk 0:01:31]}  Bf6 {[%clk 0:00:51]} 30. Rc1 {[%clk 0:01:28]}  Rad8 {[%clk 0:00:36]} 31. Rc7 {[%clk 0:01:24]}  Ng7 {[%clk 0:00:17]} 32. Qc1 {[%clk 0:01:15]}  Bh5 {[%clk 0:00:16]} 33. Rxg7+ {[%clk 0:01:10]}  Bxg7 {[%clk 0:00:15]} 34. Qc7 {[%clk 0:01:04]}  Bf6 {[%clk 0:00:09]} 35. Kf1 {[%clk 0:01:03]}  Bf3 {[%clk 0:00:08]} 36. Nxf3 {[%clk 0:00:43]}  exf3 {[%clk 0:00:09]} 37. Bxf3 {[%clk 0:00:43]}  Bxb2 {[%clk 0:00:09]} 38. Ng1 {[%clk 0:00:34]}  Qh2 {[%clk 0:00:07]} 39. Bg2 {[%clk 0:00:33]}  Bg7 {[%clk 0:00:05]} 40. Nf3 {[%clk 0:00:33]}  Qh5 {[%clk 0:00:04]} 41. Qxb7 {[%clk 0:00:30]}  Rd3 {[%clk 0:00:03]} 42. Qxa6 {[%clk 0:00:28]}  Rdxe3 {[%clk 0:00:03]} 43. Rxe3 {[%clk 0:00:28]}  Rxe3 {[%clk 0:00:04]} 44. Qc8+ {[%clk 0:00:28]}  Re8 {[%clk 0:00:03]} 45. Qc4+ {[%clk 0:00:28]}  Qf7 {[%clk 0:00:03]} 46. Ng5 {[%clk 0:00:26]}  Qxc4+ {[%clk 0:00:03]} 47. bxc4 {[%clk 0:00:26]}  h6 {[%clk 0:00:03]} 48. Bd5+ {[%clk 0:00:26]}  Kh8 {[%clk 0:00:04]} 49. Nf7+ {[%clk 0:00:25]}  Kh7 {[%clk 0:00:04]} 50. Kg2 {[%clk 0:00:26]}  Rb8 {[%clk 0:00:04]} 51. Kxg3 {[%clk 0:00:25]}  Bf8 {[%clk 0:00:04]} 52. Ne5 {[%clk 0:00:24]}  Rb2 {[%clk 0:00:04]} 53. Be6 {[%clk 0:00:24]}  Rxa2 {[%clk 0:00:04]} 54. Bxf5+ {[%clk 0:00:24]}  Kg7 {[%clk 0:00:03]} 55. Be4 {[%clk 0:00:22]}  Bc5 {[%clk 0:00:03]} 56. Kg4 {[%clk 0:00:22]}  Bd6 {[%clk 0:00:03]} 57. Bd5 {[%clk 0:00:20]}  Re2 {[%clk 0:00:03]} 58. Kf3 {[%clk 0:00:19]}  Rxe5 {[%clk 0:00:02]} 59. fxe5 {[%clk 0:00:19]}  Bxe5 {[%clk 0:00:03]} 60. c5 {[%clk 0:00:19]}  Bc7 {[%clk 0:00:04]} 61. c6 {[%clk 0:00:19]}  Kf6 {[%clk 0:00:05]} 62. Kg4 {[%clk 0:00:19]}  Ke7 {[%clk 0:00:05]} 63. Kh5 {[%clk 0:00:19]}  Kd6 {[%clk 0:00:06]} 64. Bf3 {[%clk 0:00:18]}  Kc5 {[%clk 0:00:06]} 65. Kxh6 {[%clk 0:00:18]}  Kd6 {[%clk 0:00:07]} 66. Kg6 {[%clk 0:00:19]}  Bb6 {[%clk 0:00:08]} 67. Kf7 {[%clk 0:00:19]}  Bc7 {[%clk 0:00:09]} 68. Kf6 {[%clk 0:00:19]}  Bb6 {[%clk 0:00:09]} 69. Kf5 {[%clk 0:00:20]}  Bc7 {[%clk 0:00:10]} 70. Ke4 {[%clk 0:00:20]}  Bb6 {[%clk 0:00:11]} 71. Kd3 {[%clk 0:00:20]}  Bc7 {[%clk 0:00:11]} 72. Kc4 {[%clk 0:00:21]}  Bb6 {[%clk 0:00:12]} 73. Kb5 {[%clk 0:00:21]}  Bc7 {[%clk 0:00:12]} 74. Ka6 {[%clk 0:00:22]}  Bd8 {[%clk 0:00:13]} 75. Kb7 {[%clk 0:00:22]}  Bc7 {[%clk 0:00:13]} 76. Bg2 {[%clk 0:00:22]}  Bd8 {[%clk 0:00:13]} 77. Bf3 {[%clk 0:00:23]}  Bc7 {[%clk 0:00:13]} 78. Bg2 {[%clk 0:00:23]}  Bd8 {[%clk 0:00:14]} 79. Bf3 {[%clk 0:00:24]} 1/2-1/2


[Site "https://www.chess.com"]